fUSD/lending_fUSD_20260130
["ID","MTS","AMOUNT","RATE_DAILY","PERIOD"]
[404084390,1769799043135,-500.0,0.00015718,2]
[404084391,1769799043145,-500.0,0.00015718,2]
[404084392,1769799043154,-500.0,0.00015718,2]
[404084393,1769799043164,-500.0,0.00015718,2]
[404084394,1769799043177,-500.0,0.00015718,2]
[404084395,1769799043187,-519.46286686,0.00015718,2]
[404084396,1769799043196,-500.0,0.00015718,2]
[404084397,1769799043206,-1456.24,0.00015783,2]
[404084398,1769799043219,-10014.54278349,0.0001581,2]
[404084399,1769799043230,-1113.33,0.00015823,2]
[404084400,1769799043240,-13981.42376998,0.00015837,2]
[404084401,1769799043249,-500.0,0.00015894,2]
[404084402,1769799043258,-150.0,0.00015894,2]
[404084403,1769799043268,-150.0,0.00015894,2]
[404084404,1769799043278,-500.0,0.00015894,2]
[404084405,1769799043288,-268.77195069,0.00015894,2]
[404084406,1769799043297,-500.0,0.00015894,2]
[404084407,1769799043306,-500.0,0.00015894,2]
[404084409,1769799043316,-500.0,0.00015894,2]
[404084411,1769799043325,-150.0,0.00015894,2]
[404084412,1769799043335,-500.0,0.00015894,2]
[404084413,1769799043344,-171.51596019,0.00015894,2]
[404084414,1769799043353,-150.0,0.00015894,2]
[404084415,1769799043363,-150.0,0.00015894,2]
[404084416,1769799043372,-150.0,0.00015894,2]
[404084417,1769799043381,-150.0,0.00015894,2]
[404084418,1769799043390,-500.0,0.00015894,2]
[404084419,1769799043399,-150.0,0.00015894,2]
[404084420,1769799043409,-291.0315761,0.00015894,2]
[404084421,1769799043418,-235.9944481,0.00015894,2]
[404084422,1769799043427,-500.0,0.00015894,2]
[404084423,1769799043436,-153.23607155,0.00015894,2]
[404084424,1769799043446,-150.0,0.00015894,2]
[404084425,1769799043456,-204.59716346,0.00015894,2]
[404084426,1769799043466,-166.66,0.00015898,2]
[404084427,1769799043476,-304.0,0.00015941,2]
[404084428,1769799043488,-500.0,0.00015949,2]
[404084429,1769799043497,-150.0,0.00015949,2]
[404084430,1769799043507,-500.0,0.00015949,2]
[404084431,1769799043517,-500.0,0.00015949,2]
[404084433,1769799043526,-500.0,0.00015949,2]
[404084434,1769799043536,-500.0,0.00015949,2]
[404084435,1769799043545,-500.0,0.00015949,2]
[404084436,1769799043555,-201.8353746,0.00015949,2]
[404084437,1769799043564,-150.0,0.00015949,2]
[404084438,1769799043574,-150.0,0.00015949,2]
[404084440,1769799043583,-500.0,0.00015949,2]
[404084442,1769799043593,-500.0,0.00015949,2]
[404084444,1769799043602,-150.0,0.00015949,2]
[404084446,1769799043612,-500.0,0.00015973,2]
[404084447,1769799043621,-500.0,0.00016004,2]
[404084448,1769799043631,-267.0,0.00016004,2]
[404084450,1769799043640,-500.0,0.00016004,2]
[404084452,1769799043650,-500.0,0.00016004,2]
[404084455,1769799043659,-500.0,0.00016004,2]
[404084457,1769799043669,-500.0,0.00016004,2]
[404084460,1769799043679,-500.0,0.00016004,2]
[404084463,1769799043689,-272.0,0.00016004,2]
[404084464,1769799043698,-500.0,0.00016004,2]
[404084466,1769799043708,-500.0,0.00016004,2]
[404084468,1769799043717,-150.0,0.00016004,2]
[404084470,1769799043727,-2351.0,0.00016041,2]
[404084472,1769799043739,-500.0,0.00016058,2]
[404084473,1769799043748,-500.0,0.00016058,2]
[404084475,1769799043758,-500.0,0.00016058,2]
[404084476,1769799043767,-500.0,0.00016058,2]
[404084477,1769799043777,-500.0,0.00016058,2]
[404084478,1769799043787,-500.0,0.00016058,2]
[404084479,1769799043796,-500.0,0.00016058,2]
[404084480,1769799043806,-150.0,0.00016058,2]
[404084481,1769799043815,-627.64708773,0.00016063,2]
[404084482,1769799043825,-1113.33,0.00016097,2]
[404084483,1769799043834,-4249.98,0.00016104,2]
[404084484,1769799043843,-500.0,0.00016113,2]
[404084485,1769799043852,-500.0,0.00016113,2]
[404084486,1769799043862,-500.0,0.00016113,2]
[404084487,1769799043871,-500.0,0.00016113,2]
[404084488,1769799043880,-500.0,0.00016113,2]
[404084489,1769799043889,-184.9787496,0.00016113,2]
[404084490,1769799043898,-500.0,0.00016113,2]
[404084491,1769799043909,-238.0007656,0.00016113,2]
[404084492,1769799043919,-1000.0,0.00016116,2]
[404084493,1769799043928,-232.34,0.00016137,2]
[404084494,1769799043939,-826.78002401,0.00016162,2]
[404084495,1769799043950,-500.0,0.00016168,2]
[404084496,1769799043959,-513.39557034,0.00016168,2]
[404084497,1769799043968,-500.0,0.00016168,2]
[404084498,1769799043977,-500.0,0.00016168,2]
[404084499,1769799043987,-404.25101827,0.00016168,2]
[404084500,1769799043996,-500.0,0.00016168,2]
[404084501,1769799044006,-500.0,0.00016223,2]
[404084502,1769799044018,-500.0,0.00016223,2]
[404084503,1769799044028,-593.00645443,0.00016223,2]
[404084504,1769799044037,-157.91969894,0.00016223,2]
[404084505,1769799044046,-227.82690128,0.00016234,2]
[404084506,1769799044056,-409.67833389,0.00016234,2]
[404084507,1769799044065,-378.11816783,0.00016234,2]
[404084508,1769799044074,-500.0,0.00016278,2]
[404084509,1769799044084,-500.0,0.00016278,2]
[404084510,1769799044094,-500.0,0.00016332,2]
[404084511,1769799044104,-500.0,0.00016332,2]
[404084512,1769799044114,-10014.54278349,0.00016333,2]
[404084513,1769799044123,-13981.42376998,0.00016353,2]
[404084514,1769799044134,-1113.37649203,0.00016371,2]
[404084515,1769799044143,-500.0,0.00016373,2]
[404084516,1769799044154,-500.0,0.00016373,2]
[404084517,1769799044165,-500.0,0.00016373,2]
[404084518,1769799044175,-164.62391136,0.00016373,2]
[404084519,1769799044184,-558.9380785,0.00016373,2]
[404084520,1769799044194,-568.87365999,0.00016373,2]
[404084521,1769799044203,-500.0,0.00016373,2]
[404084522,1769799044213,-500.0,0.00016373,2]
[404084523,1769799044223,-500.0,0.00016373,2]
[404084524,1769799044234,-160.21943413,0.00016373,2]
[404084525,1769799044243,-160.32431704,0.00016373,2]
[404084526,1769799044254,-500.0,0.00016373,2]
[404084527,1769799044264,-177.64323639,0.00016373,2]
[404084528,1769799044273,-500.0,0.00016373,2]
[404084529,1769799044284,-500.0,0.00016373,2]
[404084530,1769799044294,-225.37911043,0.00016373,2]
[404084531,1769799044304,-500.0,0.00016373,2]
[404084532,1769799044529,-500.0,0.00016373,2]
[404084533,1769799044542,-500.0,0.00016373,2]
[404084534,1769799044552,-500.0,0.00016373,2]
[404084535,1769799044562,-160.21744138,0.00016373,2]
[404084536,1769799044572,-500.0,0.00016373,2]
[404084537,1769799044581,-500.0,0.00016373,2]
[404084538,1769799044591,-500.0,0.00016373,2]
[404084539,1769799044600,-500.0,0.00016373,2]
[404084540,1769799044614,-500.0,0.00016373,2]
[404084541,1769799044624,-500.0,0.00016373,2]
[404084542,1769799044633,-217.57575976,0.00016373,2]
[404084543,1769799044644,-500.0,0.00016373,2]
[404084544,1769799044654,-500.0,0.00016373,2]
[404084545,1769799044664,-500.0,0.00016373,2]
[404084546,1769799044673,-500.0,0.00016373,2]
[404084547,1769799044683,-503.15498018,0.00016373,2]
[404084548,1769799044693,-169.60462217,0.00016373,2]
[404084549,1769799044703,-500.0,0.00016373,2]
[404084550,1769799044713,-500.0,0.00016373,2]
[404084551,1769799044723,-500.0,0.00016373,2]
[404084552,1769799044734,-166.21493216,0.00016373,2]
[404084553,1769799044744,-500.0,0.00016373,2]
[404084554,1769799044754,-239.55126374,0.00016373,2]
[404084555,1769799044763,-500.0,0.00016373,2]
[404084556,1769799044775,-500.0,0.00016373,2]
[404084557,1769799044786,-500.0,0.00016373,2]
[404084558,1769799044796,-500.0,0.00016373,2]
[404084559,1769799044807,-500.0,0.00016373,2]
[404084560,1769799044816,-500.0,0.00016373,2]
[404084561,1769799044827,-163.00594696,0.00016373,2]
[404084562,1769799044838,-500.0,0.00016373,2]
[404084563,1769799044848,-500.0,0.00016373,2]
[404084564,1769799044858,-500.0,0.00016384,2]
[404084565,1769799044868,-500.0,0.00016387,2]
[404084566,1769799044877,-500.0,0.00016387,2]
[404084567,1769799044888,-500.0,0.00016438,2]
[404084568,1769799044899,-500.0,0.00016438,2]
[404084569,1769799044910,-481.26463309,0.00016438,2]
[404084570,1769799044920,-500.0,0.00016438,2]
[404084571,1769799044931,-500.0,0.00016438,2]
[404084572,1769799044941,-500.0,0.00016438,2]
[404084573,1769799044951,-500.0,0.00016438,2]
[404084574,1769799044963,-500.0,0.00016438,2]
[404084575,1769799044973,-500.0,0.00016438,2]
[404084576,1769799044983,-500.0,0.00016438,2]
[404084577,1769799044996,-503.60266732,0.00016438,2]
[404084578,1769799045006,-500.0,0.00016438,2]
[404084579,1769799045016,-500.0,0.00016438,2]
[404084580,1769799045027,-500.0,0.00016438,2]
[404084581,1769799045038,-500.0,0.00016438,2]
[404084582,1769799045048,-441.59041391,0.00016442,2]
[404084583,1769799045060,-500.0,0.00016468,2]
[404084584,1769799045070,-500.0,0.00016468,2]
[404084585,1769799045080,-500.0,0.00016468,2]
[404084586,1769799045090,-500.0,0.00016468,2]
[404084587,1769799045099,-500.0,0.00016468,2]
[404084588,1769799045109,-500.0,0.00016468,2]
[404084589,1769799045119,-500.0,0.00016468,2]
[404084590,1769799045128,-500.0,0.00016468,2]
[404084591,1769799045138,-500.0,0.00016468,2]
[404084592,1769799045148,-1456.24,0.00016469,2]
[404084593,1769799045158,-491.88,0.00016505,2]
[404084594,1769799045169,-826.78002401,0.00016741,2]
[404084595,1769799045183,-364.9,0.00016743,2]
[404084596,1769799045196,-200.0,0.00016792,2]
[404084597,1769799045205,-10014.54278349,0.00016855,2]
[404084598,1769799045220,-13981.42376998,0.00016868,2]
[404084599,1769799045231,-232.34,0.0001687,2]
[404084600,1769799045241,-166.70580827,0.00016876,2]
[404084601,1769799045253,-523.69754883,0.00016876,2]
[404084602,1769799045263,-384.8810982,0.00016876,2]
[404084603,1769799045273,-191.65534537,0.00016876,2]
[404084604,1769799045283,-500.0,0.00016876,2]
[404084605,1769799045293,-500.0,0.00016876,2]
[404084606,1769799045303,-500.0,0.00016876,2]
[404084607,1769799045313,-317.15944718,0.00016876,2]
[404084608,1769799045323,-500.0,0.00016876,2]
[404084609,1769799045332,-736.0,0.00016897,2]
[404084610,1769799045342,-183.75,0.00016914,2]
[404084611,1769799045351,-868.51,0.0001692,2]
[404084612,1769799045360,-1000.0,0.00016921,2]
[404084613,1769799045370,-1000.0,0.00016921,2]
[404084614,1769799045380,-500.0,0.00016921,2]
[404084615,1769799045393,-503.09870012,0.00016921,2]
[404084616,1769799045403,-1000.0,0.00016921,2]
[404084617,1769799045412,-1000.0,0.00016921,2]
[404084618,1769799045422,-1000.0,0.00016921,2]
[404084619,1769799045431,-500.4902994,0.00016921,2]
[404084620,1769799045441,-770.71912409,0.00016921,2]
[404084621,1769799045451,-1000.0,0.00016921,2]
[404084622,1769799045460,-1000.0,0.00016921,2]
[404084623,1769799045471,-203.98074386,0.00016921,2]
[404084625,1769799045482,-1000.0,0.00016921,2]
[404084626,1769799045492,-1000.0,0.00016921,2]
[404084627,1769799045502,-1000.0,0.00016921,2]
[404084628,1769799045512,-1009.36195064,0.00016921,2]
[404084629,1769799045522,-1000.0,0.00016921,2]
[404084630,1769799045531,-1000.0,0.00016921,2]
[404084631,1769799045541,-1000.0,0.00016921,2]
[404084632,1769799045551,-459.6118856,0.00016921,2]
[404084633,1769799045560,-500.60369246,0.00016921,2]
[404084634,1769799045570,-401.53067419,0.00016921,2]
[404084635,1769799045580,-1000.0,0.00016921,2]
[404084637,1769799045590,-1000.0,0.00016921,2]
[404084638,1769799045600,-1000.0,0.00016921,2]
[404084639,1769799045610,-877.26188408,0.00016921,2]
[404084640,1769799045620,-490.28446551,0.00016921,2]
[404084641,1769799045630,-1000.0,0.00016921,2]
[404084642,1769799045640,-1000.0,0.00016921,2]
[404084643,1769799045650,-541.28684359,0.00016921,2]
[404084644,1769799045660,-1000.0,0.00016921,2]
[404084645,1769799045671,-1000.0,0.00016921,2]
[404084646,1769799045681,-500.0,0.00016921,2]
[404084647,1769799045690,-804.05633745,0.00016921,2]
[404084648,1769799045700,-5888.0,0.00016975,2]
[404084650,1769799045711,-627.64708773,0.00016982,2]
[404084651,1769799045721,-250.0,0.00017,2]
[404084652,1769799045732,-328.18562781,0.00017,7]
[404084653,1769799045742,-163.0,0.0001704,2]
[404084654,1769799045752,-2828.0,0.0001704,2]
[404084655,1769799045762,-322.6107,0.00017084,2]
[404084656,1769799045776,-1000.0,0.00017084,2]
[404084657,1769799045787,-174.61919141,0.00017084,2]
[404084658,1769799045798,-3000.0,0.00017084,2]
[404084659,1769799045808,-1000.0,0.00017084,2]
[404084660,1769799045818,-2500.0,0.00017084,2]
[404084661,1769799045827,-813.99380379,0.00017084,2]
[404084662,1769799045838,-3000.0,0.00017084,2]
[404084663,1769799045848,-3000.0,0.00017084,2]
[404084664,1769799045859,-1795.68539232,0.00017084,2]
[404084665,1769799045870,-721.12765535,0.00017084,2]
[404084666,1769799045880,-578.20924308,0.00017084,2]
[404084667,1769799045890,-1000.0,0.00017084,2]
[404084668,1769799045900,-1906.95456363,0.00017084,2]
[404084669,1769799045911,-1000.0,0.00017084,2]
[404084670,1769799045920,-1000.0,0.00017084,2]
[404084671,1769799045930,-1000.0,0.00017084,2]
[404084672,1769799045940,-1000.0,0.00017084,2]
[404084673,1769799045950,-500.0,0.00017084,2]
[404084674,1769799045959,-250.0,0.00017084,2]
[404084675,1769799045969,-854.2589148,0.00017084,2]
[404084676,1769799045979,-151.0,0.00017084,2]
[404084677,1769799045991,-156.587,0.00017084,2]
[404084678,1769799046001,-162.380719,0.00017084,2]
[404084679,1769799046011,-157.32475157,0.00017084,2]
[404084680,1769799046020,-209.40437684,0.00017084,2]
[404084681,1769799046030,-1000.0,0.00017084,2]
[404084682,1769799046040,-1000.0,0.00017084,2]
[404084683,1769799046050,-1000.0,0.00017084,2]
[404084684,1769799046059,-750.0,0.00017084,2]
[404084685,1769799046069,-500.0,0.00017084,2]
[404084686,1769799046079,-500.0,0.00017084,2]
[404084687,1769799046089,-500.0,0.00017084,2]
[404084688,1769799046098,-500.0,0.00017084,2]
[404084689,1769799046108,-500.0,0.00017084,2]
[404084690,1769799046117,-250.0,0.00017084,2]
[404084691,1769799046126,-151.0,0.00017086,2]
[404084692,1769799046136,-31147.40543643,0.00017089,2]
[404084693,1769799046145,-500.0,0.0001709,2]
[404084694,1769799046159,-500.0,0.0001709,2]
[404084695,1769799046173,-512.03353117,0.0001709,2]
[404084696,1769799046585,-11.42646883,0.0001709,2]
[404084697,1769799046596,-500.0,0.0001709,2]
[404084698,1769799046607,-3734.0,0.00017116,2]
[404084699,1769799046617,-3734.0,0.00017129,2]
[404084700,1769799046627,-217.15233878,0.00017139,2]
[404084701,1769799046637,-868.51,0.00017194,2]
[404084702,1769799046647,-225.18697532,0.00017194,2]
[404084703,1769799046657,-491.88,0.00017226,2]
[404084704,1769799046668,-233.51889341,0.00017249,2]
[404084705,1769799046678,-242.15909246,0.00017304,2]
[404084706,1769799046688,-5433.0,0.0001732,2]
[404084707,1769799046698,-826.78002401,0.00017321,2]
[404084708,1769799046708,-5433.0,0.00017325,2]
[404084709,1769799046718,-1898.85844425,0.0001734,2]
[404084710,1769799046728,-364.9,0.00017349,2]
[404084711,1769799046740,-251.11897888,0.00017359,2]
[404084712,1769799046751,-10014.54278349,0.00017378,2]
[404084713,1769799046760,-1000.0,0.00017383,2]
[404084714,1769799046770,-13981.42376998,0.00017384,2]
[404084715,1769799046780,-2314.0,0.000174,2]
[404084716,1769799046791,-153.53,0.000174,2]
[404084717,1769799046801,-168.0,0.00017409,2]
[404084718,1769799046811,-260.4103811,0.00017414,2]
[404084719,1769799046820,-250.0,0.00017445,2]
[404084720,1769799046830,-183.75,0.00017455,2]
[404084721,1769799046840,-868.51,0.00017468,2]
[404084722,1769799046850,-1000.8272521,0.00017468,2]
[404084723,1769799046860,-500.0,0.00017468,2]
[404084724,1769799046872,-500.86269689,0.00017468,2]
[404084725,1769799046882,-1500.0,0.00017468,2]
[404084726,1769799046891,-1500.0,0.00017468,2]
[404084727,1769799046900,-1500.0,0.00017468,2]
[404084728,1769799046910,-1360.17062538,0.00017468,2]
[404084729,1769799046919,-1500.0,0.00017468,2]
[404084730,1769799046928,-1500.0,0.00017468,2]
[404084731,1769799046938,-1500.0,0.00017468,2]
[404084732,1769799046947,-1500.0,0.00017468,2]
[404084733,1769799046956,-1500.0,0.00017468,2]
[404084734,1769799046965,-1000.79205538,0.00017468,2]
[404084735,1769799046974,-1508.66573499,0.00017468,2]
[404084736,1769799046986,-206.11887871,0.00017468,2]
[404084737,1769799046996,-1613.81806741,0.00017468,2]
[404084738,1769799047005,-1500.0,0.00017468,2]
[404084739,1769799047015,-421.02044444,0.00017468,2]
[404084740,1769799047025,-656.65111135,0.00017468,2]
[404084741,1769799047034,-270.0455652,0.00017469,2]
[404084742,1769799047044,-158.82094085,0.00017518,2]
[404084743,1769799047054,-280.03725112,0.00017524,2]
[404084744,1769799047065,-290.39862941,0.00017579,2]
[404084745,1769799047074,-502.0,0.00017589,2]
[404084746,1769799047084,-1500.0,0.000176,2]
[404084747,1769799047095,-232.34,0.00017604,2]
[404084748,1769799047105,-500.0,0.00017612,2]
[404084749,1769799047114,-500.0,0.00017612,2]
[404084750,1769799047123,-651.63,0.00017612,2]
[404084751,1769799047133,-341.16214364,0.00017612,2]
[404084752,1769799047143,-500.0,0.00017612,2]
[404084753,1769799047152,-326.23818299,0.00017612,2]
[404084754,1769799047161,-500.0,0.00017612,2]
[404084755,1769799047172,-500.0,0.00017612,2]
[404084756,1769799047186,-500.0,0.00017612,2]
[404084757,1769799047196,-500.0,0.00017612,2]
[404084758,1769799047205,-500.0,0.00017612,2]
[404084759,1769799047214,-500.0,0.00017612,2]
[404084760,1769799047238,-1251.80770273,0.00017613,2]
[404084761,1769799047255,-3254.62917349,0.00017613,2]
[404084762,1769799047268,-378.38431742,0.00017613,2]
[404084763,1769799047281,-184.44067477,0.00017613,2]
[404084764,1769799047293,-5433.0,0.00017614,2]
[404084765,1769799047303,-181.08010149,0.00017632,2]
[404084766,1769799047315,-885.86649465,0.00017632,2]
[404084767,1769799047327,-301.1433787,0.00017634,2]
[404084768,1769799047340,-1829.17898656,0.0001764,2]
[404084769,1769799047352,-236.2153189,0.00017642,2]
[404084770,1769799047364,-3292.0,0.00017645,2]
[404084771,1769799047377,-342.84674472,0.00017652,2]
[404084772,1769799047390,-531.74116736,0.00017652,2]
[404084773,1769799047402,-500.0,0.00017652,2]
[404084774,1769799047415,-500.0,0.00017652,2]
[404084776,1769799047428,-500.0,0.00017652,2]
[404084777,1769799047441,-500.0,0.00017652,2]
[404084778,1769799047453,-500.0,0.00017652,2]
[404084779,1769799047464,-500.0,0.00017652,2]
[404084780,1769799047474,-500.0,0.00017652,2]
[404084781,1769799047488,-1000.0,0.00017657,2]
[404084782,1769799047502,-5433.0,0.00017666,2]
[404084783,1769799047514,-2833.0,0.00017687,2]
[404084784,1769799047526,-23597.49,0.00017728,2]
[404084785,1769799047538,-868.51,0.00017742,2]
[404084786,1769799047550,-408.5166672,0.00017752,2]
[404084787,1769799047562,-1078.08194811,0.00017752,2]
[404084788,1769799047574,-1901.86434561,0.00017752,2]
[404084789,1769799047587,-2845.07531799,0.00017752,2]
[404084790,1769799047599,-3849.4863,0.00017752,2]
[404084791,1769799047611,-15832.6521736,0.00017753,2]
[404084792,1769799047624,-1459.48,0.00017753,2]
[404084793,1769799047635,-303.78,0.00017753,2]
[404084794,1769799047646,-1000.0,0.00017753,2]
[404084795,1769799047659,-583.855,0.00017753,2]
[404084796,1769799047671,-236.2153189,0.00017771,2]
[404084797,1769799047683,-25000.0,0.00017777,3]
[404084798,1769799047695,-25000.0,0.00017786,3]
[404084799,1769799047707,-2653.303,0.00017786,2]
[404084800,1769799047719,-273.517,0.00017786,2]
[404084801,1769799047733,-772.81,0.00017786,2]
[404084802,1769799047744,-25000.0,0.00017794,3]
[404084803,1769799047756,-500.0,0.00017799,2]
[404084804,1769799047767,-25000.0,0.00017803,3]
[404084805,1769799047780,-500.0,0.00017808,2]
[404084806,1769799047793,-25000.0,0.00017812,3]
[404084807,1769799047809,-500.0,0.0001782,2]
[404084808,1769799047823,-500.0,0.0001782,2]
[404084809,1769799047836,-651.63,0.0001782,2]
[404084810,1769799047849,-500.0,0.0001782,2]
[404084811,1769799047861,-500.0,0.0001782,2]
[404084812,1769799047874,-500.0,0.0001782,2]
[404084813,1769799047885,-500.0,0.0001782,2]
[404084814,1769799047895,-500.0,0.0001782,2]
[404084815,1769799047907,-500.0,0.0001782,2]
[404084816,1769799047917,-500.0,0.0001782,2]
[404084817,1769799047928,-500.0,0.0001782,2]
[404084818,1769799047942,-500.0,0.0001782,2]
[404084819,1769799047955,-109605.83836455,0.0001782,2]
[404084820,1769799047965,-500.0,0.0001782,2]
[404084821,1769799047975,-500.0,0.0001782,2]
[404084822,1769799047989,-500.0,0.0001782,2]
[404084823,1769799047999,-500.0,0.0001782,2]
[404084824,1769799048011,-500.0,0.0001782,2]
[404084825,1769799048022,-25000.0,0.00017821,3]
[404084826,1769799048034,-25000.0,0.0001783,3]
[404084827,1769799048047,-151.0,0.0001783,2]
[404084828,1769799048059,-151.0,0.0001783,2]
[404084829,1769799048070,-25000.0,0.00017838,3]
[404084830,1769799048081,-25000.0,0.00017847,3]
[404084831,1769799048092,-25000.0,0.00017856,3]
[404084832,1769799048102,-200.0,0.00017856,2]
[404084833,1769799048112,-500.0,0.00017863,2]
[404084834,1769799048127,-25000.0,0.00017865,3]
[404084835,1769799048138,-151.0,0.00017865,2]
[404084836,1769799048150,-415.773055,0.00017865,2]
[404084837,1769799048161,-415.773055,0.00017865,2]
[404084838,1769799048175,-415.773055,0.00017865,2]
[404084839,1769799048186,-415.773055,0.00017865,2]
[404084840,1769799048199,-151.0,0.00017865,2]
[404084841,1769799048220,-151.0,0.00017865,2]
[404084842,1769799048233,-151.0,0.00017865,2]
[404084843,1769799048247,-244.0,0.00017866,2]
[404084844,1769799048259,-25000.0,0.00017874,3]
[404084845,1769799048271,-151.0,0.00017874,2]
[404084846,1769799048283,-151.0,0.00017874,2]
[404084847,1769799048295,-367.054916,0.00017874,2]
[404084848,1769799048307,-151.0,0.00017874,2]
[404084849,1769799048318,-367.054916,0.00017874,2]
[404084850,1769799048330,-452.447922,0.00017874,2]
[404084851,1769799048342,-151.0,0.00017874,2]
[404084852,1769799048353,-367.054916,0.00017874,2]
[404084853,1769799048365,-367.054916,0.00017874,2]
[404084854,1769799048376,-452.447922,0.00017874,2]
[404084855,1769799048387,-452.447922,0.00017874,2]
[404084856,1769799048399,-452.447922,0.00017874,2]
[404084857,1769799048410,-151.0,0.00017879,2]
[404084858,1769799048421,-500.0,0.00017882,2]
[404084859,1769799048433,-500.0,0.00017882,2]
[404084860,1769799048445,-651.63,0.00017882,2]
[404084861,1769799048458,-500.0,0.00017882,2]
[404084862,1769799048469,-500.0,0.00017882,2]
[404084863,1769799048481,-500.0,0.00017882,2]
[404084864,1769799048493,-500.0,0.00017882,2]
[404084865,1769799048504,-500.0,0.00017882,2]
[404084866,1769799048515,-500.0,0.00017882,2]
[404084867,1769799048527,-4278.0,0.00017882,2]
[404084868,1769799048539,-25000.0,0.00017882,3]
[404084869,1769799048550,-5433.0,0.00017884,2]
[404084870,1769799048561,-500.0,0.0001789,2]
[404084871,1769799048573,-500.0,0.0001789,2]
[404084872,1769799048584,-500.0,0.0001789,2]
[404084873,1769799048597,-651.63,0.0001789,2]
[404084874,1769799048608,-500.0,0.0001789,2]
[404084875,1769799048621,-500.0,0.0001789,2]
[404084876,1769799048632,-500.0,0.0001789,2]
[404084877,1769799048643,-500.0,0.0001789,2]
[404084878,1769799048655,-500.0,0.0001789,2]
[404084879,1769799048667,-500.0,0.0001789,2]
[404084880,1769799048677,-25000.0,0.00017891,3]
[404084881,1769799048689,-414.71781927,0.00017898,2]
[404084882,1769799048700,-500.0,0.00017898,2]
[404084883,1769799048711,-500.0,0.00017898,2]
[404084884,1769799048723,-500.0,0.00017898,2]
[404084885,1769799048734,-500.0,0.00017898,2]
[404084886,1769799048746,-500.0,0.00017898,2]
[404084887,1769799048756,-500.0,0.00017898,2]
[404084888,1769799048767,-10000.0,0.00017899,2]
[404084889,1769799048779,-500.0,0.00017899,2]
[404084890,1769799048790,-500.0,0.00017899,2]
[404084891,1769799048800,-500.0,0.00017899,2]
[404084892,1769799048811,-651.63,0.00017899,2]
[404084893,1769799048822,-500.0,0.00017899,2]
[404084894,1769799048833,-500.0,0.00017899,2]
[404084895,1769799048845,-523.46,0.00017899,2]
[404084896,1769799048861,-500.0,0.00017899,2]
[404084897,1769799048872,-500.0,0.00017899,2]
[404084898,1769799048884,-500.0,0.00017899,2]
[404084899,1769799048896,-500.0,0.00017899,2]
[404084900,1769799048907,-500.0,0.00017899,2]
[404084901,1769799048919,-500.0,0.00017899,2]
[404084902,1769799048931,-25000.0,0.000179,3]
[404084903,1769799048943,-25000.0,0.000179,3]
[404084904,1769799048955,-627.64708773,0.000179,2]
[404084905,1769799048966,-826.78002401,0.000179,2]
[404084906,1769799048978,-202.655568,0.000179,2]
[404084907,1769799048994,-202.655568,0.000179,2]
[404084908,1769799049005,-202.655568,0.000179,2]
[404084909,1769799049016,-151.0,0.000179,2]
[404084910,1769799049028,-202.655568,0.000179,2]
[404084911,1769799049038,-151.0,0.000179,2]
[404084912,1769799049049,-152.08724,0.000179,2]
[404084913,1769799049060,-10014.54278349,0.000179,2]
[404084914,1769799049071,-13981.42376998,0.000179,2]